bitfinex/quotes_SOLUSD_20250313
["timestamp","ask_amount","ask_price","bid_price","bid_amount"]
[1741887188247,0.063,122.07,122.03,56.73698667]
[1741887188743,0.063,122.07,122.04,56.73698667]
[1741887189145,0.063,122.07,122.05,56.73698667]
[1741887189447,0.063,122.07,122.06,56.73698667]
[1741887189644,0.063,122.07,122.05,56.73698667]
[1741887190042,0.063,122.07,122.06,56.73698667]
[1741887190346,0.063,122.07,122.05,56.73698667]
[1741887190929,0.063,122.07,122.06,56.73698667]
[1741887191145,0.063,122.07,122.05,56.73698667]
[1741887191644,0.063,122.07,122.06,56.73698667]
[1741887193038,0.063,122.07,122.06,64.92958667]
[1741887193754,0.063,122.07,122.06,376.92958667]
[1741887193943,0.0001,122.07,122.06,376.92958667]
[1741887195253,0.063,122.15,122.09,20.0]
[1741887195437,8.2498,122.15,122.11,56.73698667]
[1741887195827,0.063,122.15,122.11,56.73698667]
[1741887196153,0.063,122.15,122.14,56.73698667]
[1741887196548,0.063,122.15,122.13,56.73698667]
[1741887197632,0.063,122.15,122.12,56.73698667]
[1741887197855,0.063,122.15,122.09,8.1904]
[1741887198037,0.063,122.15,122.11,56.73698667]
[1741887198244,56.79998667,122.15,122.1,56.73698667]
[1741887198554,56.73698667,122.14,122.09,56.73698667]
[1741887198760,56.79998667,122.15,122.09,56.73698667]
[1741887198950,56.79998667,122.15,122.1,56.73698667]
[1741887199160,8.1873,122.14,122.11,56.73698667]
[1741887199335,8.1873,122.14,122.08,89.191]
[1741887199531,8.1873,122.14,122.1,56.73698667]
[1741887201240,64.98688667,122.15,122.1,56.73698667]
[1741887201839,8.2499,122.15,122.12,56.73698667]
[1741887202048,0.063,122.15,122.12,56.73698667]
[1741887202255,0.063,122.15,122.13,37.72287919]
[1741887203060,0.063,122.15,122.12,37.72287919]
[1741887203553,0.063,122.15,122.13,37.72287919]
[1741887203947,0.063,122.15,122.14,37.72287919]
[1741887204944,0.063,122.15,122.13,37.72287919]
[1741887205260,0.063,122.15,122.14,37.72287919]
[1741887207855,0.063,122.15,122.13,8.1876]
[1741887208041,0.063,122.15,122.14,37.72287919]
[1741887209045,0.063,122.15,122.11,37.72287919]
[1741887209347,37.72287919,122.14,122.09,37.72287919]
[1741887210247,37.78587919,122.15,122.1,37.72287919]
[1741887210448,37.72287919,122.12,122.05,8.1933]
[1741887210648,37.72287919,122.12,122.07,37.72287919]
[1741887210851,37.72287919,122.13,122.08,37.72287919]
[1741887211360,37.78587919,122.15,122.1,37.72287919]
[1741887211543,37.78587919,122.15,122.11,37.72287919]
[1741887211544,0.063,122.15,122.11,37.72287919]
[1741887212344,37.78587919,122.15,122.1,37.72287919]
[1741887212568,37.78587919,122.15,122.07,109.6713]
[1741887212866,37.78587919,122.15,122.1,37.72287919]
[1741887213040,37.78587919,122.15,122.1,45.91267919]
[1741887214162,0.063,122.15,122.11,37.72287919]
[1741887214359,0.063,122.15,122.13,37.72287919]
[1741887214867,0.063,122.15,122.12,37.72287919]
[1741887215747,0.063,122.15,122.13,37.72287919]
[1741887216572,0.063,122.15,122.14,37.72287919]
[1741887217247,0.063,122.15,122.14,45.91017919]
[1741887224768,0.063,122.15,122.14,37.72287919]
[1741887225070,0.063,122.15,122.12,81.0]
[1741887225281,0.063,122.15,122.12,118.72287919]
[1741887225447,0.063,122.15,122.12,37.72287919]
[1741887226276,0.063,122.15,122.11,37.72287919]
[1741887226458,37.78587919,122.15,122.1,45.91267919]
[1741887226774,0.063,122.15,122.12,37.72287919]
[1741887227978,0.063,122.15,122.13,37.72287919]
[1741887228359,0.063,122.15,122.14,37.72287919]
[1741887230380,0.063,122.15,122.14,45.91017919]
[1741887232680,0.063,122.15,122.14,357.91017919]
[1741887234191,0.063,122.15,122.14,45.91017919]
[1741887236594,0.063,122.15,122.12,8.1886]
[1741887237088,0.063,122.15,122.13,37.72287919]
[1741887237264,0.063,122.15,122.14,37.72287919]
[1741887237580,0.063,122.15,122.11,8.1892]
[1741887237784,0.063,122.15,122.12,37.72287919]
[1741887237987,0.063,122.15,122.13,37.72287919]
[1741887239087,0.063,122.15,122.13,45.91077919]
[1741887239292,0.063,122.15,122.14,37.72287919]
[1741887240479,0.063,122.15,122.14,349.72287919]
[1741887240874,0.063,122.15,122.13,37.72287919]
[1741887241081,0.063,122.15,122.12,37.72287919]
[1741887241280,0.063,122.15,122.13,37.72287919]
[1741887241480,0.063,122.15,122.14,37.72287919]
[1741887242796,0.063,122.15,122.13,37.72287919]
[1741887242998,0.063,122.15,122.12,37.72287919]
[1741887243574,0.063,122.15,122.08,92.094]
[1741887243776,0.063,122.15,122.11,37.72287919]
[1741887244897,8.2496,122.15,122.11,37.72287919]
[1741887245098,8.2496,122.15,122.1,37.72287919]
[1741887245099,45.97247919,122.15,122.1,37.72287919]
[1741887245292,6.4904,122.14,122.1,37.72287919]
[1741887246196,0.063,122.15,122.12,37.72287919]
[1741887246598,0.063,122.15,122.13,37.72287919]
[1741887246981,0.063,122.15,122.13,45.91077919]
[1741887247181,0.063,122.15,122.13,37.72287919]
[1741887247577,0.063,122.15,122.12,45.91127919]
[1741887247973,0.063,122.15,122.13,37.72287919]
[1741887248179,0.063,122.15,122.11,37.72287919]
[1741887248979,8.2496,122.15,122.1,37.72287919]
[1741887249508,37.72287919,122.14,122.09,37.72287919]
[1741887249799,66.43907919,122.15,122.07,8.192]
[1741887250096,0.063,122.15,122.11,37.72287919]
[1741887250395,0.063,122.15,122.12,37.72287919]
[1741887250592,0.063,122.15,122.11,37.72287919]
[1741887250999,0.063,122.15,122.12,37.72287919]
[1741887254007,0.063,122.15,122.11,37.72287919]
[1741887254301,0.063,122.15,122.08,8.1913]
[1741887254495,0.063,122.15,122.11,37.72287919]
[1741887254683,37.78587919,122.15,122.1,37.72287919]
[1741887254879,37.72287919,122.13,122.08,37.72287919]
[1741887255295,37.72287919,122.12,122.07,37.72287919]
[1741887255503,37.72287919,122.12,122.06,37.75287919]
[1741887255793,37.72287919,122.11,122.06,37.75287919]
[1741887256005,8.19,122.1,122.06,37.75287919]
[1741887256501,37.72287919,122.08,122.06,0.03]
[1741887257301,37.72287919,122.07,122.06,0.03]
[1741887257683,46.90287919,122.07,122.06,0.03]
[1741887257899,55.09487919,122.07,122.06,0.03]
[1741887259600,73.88668962,122.07,122.06,0.0001]
[1741887259902,75.43578962,122.07,122.06,0.0001]
[1741887260202,56.64397919,122.07,122.06,0.0001]
[1741887262301,20.0,122.04,121.96,82.583]
[1741887262491,37.72287919,122.02,121.97,37.72287919]
[1741887262894,37.72287919,122.01,121.96,37.72287919]
[1741887263098,45.91947919,122.01,121.96,37.72287919]
[1741887263800,37.72287919,122.0,121.95,0.03]
[1741887264003,37.72287919,121.98,121.95,0.03]
[1741887264309,9.14,121.97,121.95,0.03]
[1741887265297,46.86287919,121.97,121.95,0.03]
[1741887265603,44.07187919,121.96,121.95,0.03]
[1741887267207,52.27127919,121.96,121.95,0.03]
[1741887267883,71.20525119,121.96,121.95,0.03]
[1741887268393,0.92816157,121.95,121.94,0.03]
[1741887268600,38.65104076,121.95,121.94,0.03]
[1741887268795,18.79181043,121.94,121.87,45.92807919]
[1741887268999,37.72287919,121.91,121.87,8.2052]
[1741887269195,46.82287919,121.92,121.87,45.92807919]
[1741887269603,9.1,121.92,121.87,45.92807919]
[1741887270108,9.1,121.92,121.88,37.72287919]
[1741887270606,9.1,121.92,121.91,37.72287919]
[1741887270788,37.72287919,121.98,121.91,37.72287919]
[1741887270993,46.80287919,121.98,121.93,37.72287919]
[1741887271509,43.84207919,122.0,121.95,37.72287919]
[1741887272005,52.03877919,122.0,121.95,37.72287919]
[1741887272209,43.84207919,122.0,121.94,37.72287919]
[1741887272393,43.84207919,122.0,121.95,37.72287919]
[1741887273305,43.84207919,122.0,121.95,45.92257919]
[1741887273605,52.03887919,122.0,121.95,8.1997]
[1741887273793,43.84207919,122.0,121.95,45.92257919]
[1741887274514,37.72287919,121.99,121.94,37.72287919]
[1741887274808,43.84207919,122.0,121.95,37.72287919]
[1741887275215,43.84207919,122.0,121.94,8.2007]
[1741887275514,6.1192,122.0,121.95,45.92277919]
[1741887276413,43.84207919,122.0,121.95,45.92277919]
[1741887276713,52.03887919,122.0,121.95,37.72287919]
[1741887277087,6.1192,122.0,121.96,37.72287919]
[1741887278108,43.84207919,122.0,121.95,37.72287919]
[1741887278412,52.03877919,122.0,121.95,37.72287919]
[1741887279898,37.72287919,121.99,121.94,37.75287919]
[1741887280101,32.96554886,122.0,121.94,0.03]
[1741887280102,37.72287919,121.98,121.94,0.03]
[1741887280489,37.72287919,121.99,121.94,45.95357919]
[1741887280892,52.10177919,122.0,121.95,37.72287919]
[1741887281120,14.3789,122.0,121.96,37.72287919]
[1741887281693,52.10177919,122.0,121.95,37.72287919]
[1741887283416,14.379,122.0,121.96,37.72287919]
[1741887283604,52.10187919,122.0,121.95,37.72287919]
[1741887284494,72.59367919,122.0,121.95,37.72287919]
[1741887285107,37.72287919,121.99,121.94,37.75287919]
[1741887285419,72.59367919,122.0,121.95,37.72287919]
[1741887285921,37.72287919,121.99,121.94,0.03]
[1741887286308,37.72287919,121.97,121.94,0.03]
[1741887286910,8.1994,121.96,121.94,0.03]
[1741887287620,20.4947,121.99,121.94,0.03]
[1741887287813,45.92017919,121.99,121.94,37.75287919]
[1741887288119,45.92017919,121.99,121.94,0.03]
[1741887288314,8.1973,121.99,121.94,37.75287919]
[1741887288519,8.1973,121.99,121.95,37.72287919]
[1741887289622,45.92017919,121.99,121.94,37.75287919]
[1741887289921,45.92017919,121.99,121.94,0.03]
[1741887289922,37.72287919,121.98,121.94,0.03]
[1741887290316,8.1973,121.99,121.95,37.72287919]
[1741887290814,8.1973,121.99,121.94,37.75287919]
[1741887291523,45.92017919,121.99,121.94,37.75287919]
[1741887292125,8.1973,121.99,121.94,37.75287919]
[1741887292423,8.1973,121.99,121.94,23.67874173]
[1741887293120,8.1973,121.99,121.96,23.64874173]
[1741887293506,8.2599,122.0,121.94,8.2303]
[1741887293717,8.2599,122.0,121.97,23.64874173]
[1741887293919,8.2599,122.0,121.96,23.64874173]
[1741887294322,52.40044173,122.0,121.95,23.64874173]
[1741887298333,23.64874173,121.98,121.94,0.03]
[1741887299327,23.64874173,121.99,121.94,0.03]
[1741887300325,52.34424173,121.97,121.94,0.03]
[1741887300535,23.64874173,121.95,121.94,0.03]
[1741887300733,23.64874173,121.95,121.87,81.0]
[1741887301052,23.64874173,121.95,121.9,23.64874173]
[1741887301330,8.84,121.96,121.94,23.64874173]
[1741887301535,8.1987,121.97,121.9,0.14216157]
[1741887301714,8.1987,121.97,121.94,23.64874173]
[1741887301918,8.1987,121.97,121.93,23.64874173]
[1741887302434,23.64874173,121.96,121.89,137.0]
[1741887302613,23.64874173,121.95,121.9,23.64874173]
[1741887302813,23.64874173,121.96,121.91,23.64874173]
[1741887303316,23.64874173,121.96,121.88,401.2045]
[1741887303522,23.64874173,121.96,121.91,23.64874173]
[1741887304036,52.34424173,121.97,121.91,23.64874173]
[1741887304216,23.64874173,121.96,121.91,23.64874173]
[1741887304910,8.1983,121.98,121.93,23.64874173]
[1741887305116,17.0383,121.98,121.93,23.64874173]
[1741887305315,17.0383,121.98,121.94,0.03]
[1741887305618,0.063,121.97,121.94,23.67874173]
[1741887306527,0.063,121.97,121.94,0.03]
[1741887306933,0.063,121.97,121.94,23.67874173]
[1741887307721,0.063,121.97,121.95,23.64874173]
[1741887307924,0.063,121.97,121.96,23.64874173]
[1741887308117,0.063,121.97,121.96,31.84814173]
[1741887308440,0.063,121.97,121.96,23.64874173]
[1741887308935,0.063,121.97,121.96,31.84814173]
[1741887310131,0.063,121.97,121.96,23.64874173]
[1741887311922,0.063,121.97,121.95,8.1997]
[1741887312121,0.063,121.97,121.96,23.64874173]
[1741887313538,0.063,121.97,121.96,31.84814173]
[1741887314723,0.063,121.97,121.96,8.1994]
[1741887315114,0.063,121.97,121.96,31.84814173]
[1741887316840,0.063,121.97,121.94,81.03]
[1741887317032,0.063,121.97,121.96,23.64874173]
[1741887317622,0.063,121.97,121.94,89.2304]
[1741887317623,0.063,121.97,121.94,0.03]
[1741887317825,8.1994,121.96,121.94,0.03]
[1741887320639,23.64874173,121.95,121.94,0.03]
[1741887321028,6.1514,121.94,121.86,1.6366]
[1741887321226,23.64874173,121.92,121.87,23.64874173]
[1741887321441,32.42874173,121.93,121.88,23.64874173]
[1741887321637,8.78,121.93,121.89,23.64874173]
[1741887321859,8.78,121.93,121.91,23.64874173]
[1741887322352,8.2007,121.94,121.92,23.64874173]
[1741887322721,8.2007,121.94,121.87,8.48972314]
[1741887323041,8.2007,121.94,121.91,23.64874173]
[1741887323443,8.2007,121.94,121.87,320.48972314]
[1741887323640,8.2007,121.94,121.91,23.64874173]
[1741887323942,8.2,121.95,121.91,23.64874173]
[1741887324142,8.2,121.95,121.9,23.64874173]
[1741887324548,31.84874173,121.95,121.9,23.64874173]
[1741887324747,31.84874173,121.95,121.88,8.2045]
[1741887325050,31.84874173,121.95,121.9,23.64874173]
[1741887325646,8.2,121.95,121.91,23.64874173]
[1741887326445,8.2,121.95,121.9,23.64874173]
[1741887326924,31.84874173,121.95,121.9,23.64874173]
[1741887328159,23.64874173,121.94,121.89,23.64874173]
[1741887328327,23.64874173,121.93,121.88,23.64874173]
[1741887328527,23.64874173,121.93,121.82,41.5423]
[1741887328528,10.3064,121.92,121.9,0.03]
[1741887328725,29.85084173,121.91,121.9,0.03]
[1741887328941,6.2021,121.91,121.9,0.03]
[1741887329255,82.1,121.94,121.9,23.67874173]
[1741887329427,24.7285,121.95,121.91,23.64874173]
[1741887329755,23.64874173,121.93,121.9,0.03]
[1741887329940,23.64874173,121.91,121.9,0.03]
[1741887330246,60.67784173,121.95,121.9,0.03]
[1741887330448,23.64874173,121.94,121.9,0.03]
[1741887331252,31.84944173,121.94,121.9,0.03]
[1741887331560,40.56944173,121.94,121.9,0.03]
[1741887332127,23.64874173,121.92,121.9,0.03]
[1741887332330,16.9207,121.94,121.9,23.67874173]
[1741887332557,16.9207,121.94,121.9,0.03]
[1741887333060,6.2021,121.95,121.92,23.64874173]
[1741887333226,0.063,121.97,121.94,23.64874173]
[1741887333425,0.063,121.97,121.96,23.64874173]
[1741887335236,0.063,121.97,121.96,31.84814173]
[1741887335752,0.063,122.0,121.96,77.50906313]
[1741887335957,0.063,122.0,121.99,23.64874173]
[1741887336926,0.063,122.0,121.99,212.45826487]
[1741887337140,0.063,122.0,121.99,231.10791373]
[1741887337339,0.063,122.0,121.99,239.30521373]
[1741887337540,0.063,122.08,122.0,18.933972]
[1741887337748,0.063,122.08,122.04,23.64874173]
[1741887338138,23.71174173,122.08,122.03,23.64874173]
[1741887338643,0.063,122.08,122.04,23.64874173]
[1741887339744,0.063,122.08,122.05,23.64874173]
[1741887340062,0.063,122.08,122.04,23.64874173]
[1741887340938,23.71174173,122.08,122.0,530.0]
[1741887341137,0.063,122.08,122.04,23.64874173]
[1741887342440,0.063,122.08,122.05,23.64874173]
[1741887342651,0.063,122.08,122.07,23.64874173]
[1741887342837,0.063,122.08,122.06,23.64874173]
[1741887343038,0.063,122.08,122.05,23.64874173]
[1741887343269,23.71174173,122.08,122.03,23.64874173]
[1741887343756,31.90344173,122.08,122.03,23.64874173]
[1741887344367,8.2547,122.08,122.04,23.64874173]
[1741887344950,31.90344173,122.08,122.03,23.64874173]
[1741887345538,31.90344173,122.08,122.02,104.64874173]
[1741887345937,31.90344173,122.08,122.03,23.64874173]
[1741887346132,8.2547,122.08,122.03,23.64874173]
[1741887346358,8.2547,122.08,122.05,23.64874173]
[1741887346560,31.90344173,122.08,122.03,23.64874173]
[1741887347749,23.64874173,122.06,122.01,23.64874173]
[1741887347956,23.64874173,122.05,122.0,23.64874173]
[1741887348853,23.64874173,122.06,122.01,23.64874173]
[1741887349056,8.1933,122.05,122.01,23.64874173]
[1741887349462,31.84204173,122.05,122.0,23.64874173]
[1741887349665,8.1933,122.05,122.01,23.64874173]
[1741887350158,23.71174173,122.08,122.03,23.64874173]
[1741887350366,8.1921,122.07,122.04,23.64874173]
[1741887350546,8.1921,122.07,122.05,23.64874173]
[1741887350742,8.1921,122.07,122.04,23.64874173]
[1741887350941,8.2543,122.08,122.05,23.64874173]
[1741887351136,8.2543,122.08,122.07,23.64874173]
[1741887351137,0.063,122.08,122.07,23.64874173]
[1741887351563,0.063,122.08,122.05,81.0]
[1741887351942,0.063,122.08,122.05,104.64874173]
[1741887352143,0.063,122.08,122.01,145.196]
[1741887352144,0.063,122.08,122.01,137.0]
[1741887352344,0.063,122.08,122.04,23.64874173]
[1741887353655,0.063,122.08,122.05,23.64874173]
[1741887354964,0.063,122.08,122.04,23.64874173]
[1741887355463,0.063,122.08,122.01,8.1959]
[1741887355664,0.063,122.08,122.05,23.64874173]
[1741887355967,0.063,122.08,122.04,23.64874173]
[1741887356564,23.64874173,122.05,121.99,1.5252]
[1741887356870,23.64874173,122.06,122.01,23.64874173]
[1741887357166,8.1933,122.05,122.01,23.64874173]
[1741887358251,8.1926,122.06,122.03,23.64874173]
[1741887358455,0.063,122.08,122.05,23.64874173]
[1741887358970,0.063,122.08,122.04,23.64874173]
[1741887359268,8.2543,122.08,122.04,23.64874173]
[1741887360275,8.2543,122.08,122.05,23.64874173]
[1741887360576,8.2543,122.08,122.07,23.64874173]
[1741887360577,0.063,122.08,122.07,23.64874173]
[1741887361157,0.063,122.08,122.06,23.64874173]
[1741887361364,0.063,122.08,122.01,81.0]
[1741887361365,23.71174173,122.08,122.01,81.0]
[1741887361576,0.063,122.08,122.03,23.64874173]
[1741887362069,23.71174173,122.08,122.03,23.64874173]
[1741887362273,23.64874173,122.05,121.99,81.0]
[1741887362469,23.64874173,122.01,121.96,23.64874173]
[1741887362851,23.64874173,122.02,121.97,23.64874173]
[1741887363073,28.6885,122.0,121.96,23.64874173]
[1741887363288,8.1967,122.0,121.97,23.64874173]
[1741887363570,8.1967,122.0,121.94,0.28432314]
[1741887363759,8.1967,122.0,121.96,23.64874173]
[1741887364166,52.33724173,122.0,121.95,23.64874173]
[1741887364354,72.89551465,122.0,121.95,37.83501465]
[1741887364555,37.83501465,121.99,121.94,37.83501465]
[1741887364759,37.83501465,121.98,121.91,137.28432314]
[1741887364966,8.88,121.99,121.9,82.64]
[1741887365173,37.83501465,121.95,121.9,0.03]
[1741887365355,37.83501465,121.95,121.9,37.86501465]
[1741887365559,37.83501465,121.96,121.91,37.83501465]
[1741887365973,37.83501465,121.96,121.9,37.86501465]
[1741887366277,37.83501465,121.93,121.9,0.03]
[1741887366463,37.83501465,121.92,121.9,0.03]
[1741887366659,46.71501465,121.93,121.9,0.03]
[1741887367255,8.202,121.92,121.9,0.03]
[1741887368179,46.03701465,121.92,121.9,0.03]
[1741887368355,8.202,121.92,121.9,0.03]
[1741887369676,37.83501465,121.91,121.9,0.0001]
[1741887371283,46.03771465,121.91,121.9,0.0001]
[1741887371477,20.0,121.88,121.87,0.03]
[1741887371657,66.69501465,121.88,121.87,0.03]
[1741887372075,66.69501465,121.88,121.87,0.0001]
[1741887373368,0.14216157,121.87,121.81,0.03]
[1741887373566,37.83501465,121.85,121.81,0.03]
[1741887373762,37.83501465,121.87,121.82,37.83501465]
[1741887373985,8.84,121.86,121.83,37.83501465]
[1741887374159,8.84,121.86,121.82,37.83501465]
[1741887374364,46.67501465,121.86,121.81,0.03]
[1741887374559,37.83501465,121.85,121.81,0.03]
[1741887374783,37.33501465,121.85,121.81,0.03]
[1741887375364,8.2069,121.85,121.81,37.86501465]
[1741887375564,8.84,121.86,121.83,37.83501465]
[1741887375858,17.0463,121.86,121.82,37.83501465]
[1741887376063,8.84,121.86,121.83,37.83501465]
[1741887376266,8.84,121.86,121.81,0.03]
[1741887376481,8.84,121.86,121.82,37.83501465]
[1741887376482,17.0463,121.86,121.82,37.83501465]
[1741887376659,17.0463,121.86,121.83,37.83501465]
[1741887376863,8.2063,121.86,121.83,37.83501465]
[1741887377487,88.9333,121.92,121.82,8.2086]
[1741887377693,8.82,121.91,121.87,37.83501465]
[1741887377865,46.65501465,121.91,121.86,37.83501465]
[1741887378166,37.83501465,121.9,121.85,37.83501465]
[1741887378366,54.85771465,121.91,121.85,37.83501465]
[1741887378575,54.85771465,121.91,121.86,37.83501465]
[1741887378774,46.03771465,121.91,121.86,37.83501465]
[1741887378981,8.82,121.9,121.86,37.83501465]
[1741887379288,17.0237,121.9,121.86,37.83501465]
[1741887379983,8.82,121.9,121.86,37.83501465]
[1741887380169,8.82,121.9,121.88,37.83501465]
[1741887380365,17.0235,121.9,121.87,37.83501465]
[1741887380573,8.82,121.9,121.87,37.83501465]
[1741887380773,8.82,121.9,121.88,37.83501465]
[1741887380976,216.86,121.93,121.89,37.83501465]
[1741887381168,225.0615,121.93,121.86,37.83501465]
[1741887381475,216.86,121.93,121.89,37.83501465]
[1741887381870,262.89661465,121.93,121.88,37.83501465]
[1741887382070,262.89661465,121.93,121.87,37.83501465]
[1741887382266,283.40011465,121.93,121.87,37.83501465]
[1741887382579,37.83501465,121.9,121.85,118.83501465]
[1741887382787,37.83501465,121.92,121.86,37.83501465]
[1741887383166,37.83501465,121.92,121.85,89.2066]
[1741887383167,37.83501465,121.92,121.87,37.83501465]
[1741887383368,216.86,121.93,121.88,37.83501465]
[1741887383574,254.69501465,121.93,121.88,37.83501465]
[1741887383782,216.86,121.93,121.9,37.83501465]
[1741887385503,37.83501465,121.92,121.87,37.83501465]
[1741887386171,37.83501465,121.92,121.86,37.83501465]
[1741887386590,8.2027,121.91,121.87,37.83501465]
[1741887387094,37.83501465,121.92,121.87,46.04031465]
[1741887387095,46.03731465,121.92,121.87,46.04031465]
[1741887387295,8.2023,121.92,121.88,37.83501465]
[1741887387691,46.03731465,121.92,121.87,37.83501465]
[1741887387890,8.2023,121.92,121.88,37.83501465]
[1741887388071,254.75801465,121.93,121.88,37.83501465]
[1741887388072,216.923,121.93,121.88,37.83501465]
[1741887388275,216.923,121.93,121.9,37.83501465]
[1741887388679,0.063,121.93,121.9,37.83501465]
[1741887388998,0.063,121.93,121.91,37.83501465]
[1741887389201,0.063,121.93,121.9,37.83501465]
[1741887390596,0.063,121.93,121.87,8.48972314]
[1741887390792,0.063,121.93,121.9,37.83501465]
[1741887392097,37.83501465,121.91,121.87,81.0]
[1741887392401,0.063,121.93,121.85,37.83501465]
[1741887392402,46.51501465,121.9,121.85,37.83501465]
[1741887392776,8.68,121.9,121.86,37.83501465]
[1741887392993,8.68,121.9,121.84,90.8184]
[1741887392994,8.68,121.9,121.87,37.83501465]
[1741887393200,8.68,121.9,121.86,37.83501465]
[1741887393901,8.2041,121.89,121.86,37.83501465]
[1741887394278,16.8837,121.9,121.86,37.83501465]
[1741887395305,8.68,121.9,121.86,46.04101465]
[1741887395603,16.8836,121.9,121.86,37.83501465]
[1741887395798,16.8836,121.9,121.86,46.04091465]
[1741887396101,8.68,121.9,121.86,37.83501465]
[1741887396289,8.2029,121.91,121.86,37.83501465]
[1741887396494,217.02,121.92,121.89,37.83501465]
[1741887396893,225.2223,121.92,121.88,37.83501465]
[1741887397104,263.05731465,121.92,121.87,37.83501465]
[1741887397306,225.2223,121.92,121.88,37.83501465]
[1741887397687,217.02,121.92,121.88,37.83501465]
[1741887397888,225.2222,121.92,121.88,37.83501465]
[1741887398184,46.03721465,121.92,121.87,37.83501465]
[1741887398594,54.65721465,121.92,121.87,37.83501465]
[1741887398985,37.83501465,121.91,121.86,37.83501465]
[1741887399393,37.3274,121.92,121.84,37.83501465]
[1741887399599,44.26471465,121.89,121.84,37.83501465]
[1741887400317,46.03971465,121.88,121.83,0.03]
[1741887400486,46.41501465,121.87,121.83,0.03]
[1741887400691,46.41501465,121.87,121.85,0.03]
[1741887400888,37.83501465,121.86,121.85,0.03]
[1741887401807,46.41501465,121.87,121.85,0.03]
[1741887402110,46.04111465,121.86,121.85,0.03]
[1741887403708,8.2061,121.86,121.85,0.03]
[1741887404210,46.41501465,121.87,121.85,0.03]
[1741887404211,8.58,121.87,121.85,37.86501465]
[1741887404408,8.58,121.87,121.85,0.03]
[1741887404710,8.58,121.87,121.86,37.83501465]
[1741887405110,6.4297,121.89,121.86,37.83501465]
[1741887405292,16.822,121.92,121.88,37.83501465]
[1741887405614,16.822,121.92,121.85,0.03]
[1741887405615,37.83501465,121.9,121.85,0.03]
[1741887405792,37.83501465,121.9,121.85,37.86501465]
[1741887406410,37.83501465,121.86,121.85,0.03]
[1741887406730,8.6,121.86,121.85,0.03]
[1741887407293,54.64111465,121.86,121.85,0.03]
[1741887407909,16.8061,121.86,121.85,0.03]
[1741887408288,54.64111465,121.86,121.85,0.03]
[1741887408494,16.8061,121.86,121.85,0.03]
[1741887409913,8.6,121.86,121.85,0.03]
[1741887410226,16.8061,121.86,121.85,0.03]
[1741887410394,8.6,121.86,121.85,0.03]
[1741887410890,16.8061,121.86,121.85,0.03]
[1741887412715,8.6,121.86,121.85,0.03]
[1741887413217,16.7849,121.88,121.85,0.03]
[1741887413796,8.2049,121.88,121.85,0.03]
[1741887414203,8.2049,121.88,121.85,37.86501465]
[1741887414596,8.202,121.92,121.87,37.83501465]
[1741887414795,8.202,121.92,121.88,37.83501465]
[1741887414997,16.8446,121.93,121.88,37.83501465]
[1741887415817,16.8446,121.93,121.89,37.83501465]
[1741887416123,8.2646,121.93,121.89,37.83501465]
[1741887416422,16.8246,121.93,121.89,37.83501465]
[1741887416793,8.623,121.93,121.89,46.03901465]
[1741887417508,0.063,121.93,121.89,46.03901465]
[1741887417821,0.063,121.93,121.9,37.83501465]
[1741887418828,0.063,121.93,121.92,37.83501465]
[1741887420105,46.45801465,121.93,121.88,37.83501465]
[1741887420425,8.623,121.93,121.92,37.83501465]
[1741887420630,8.623,121.93,121.91,37.83501465]
[1741887421134,0.063,121.93,121.92,37.83501465]
[1741887421431,53.44595565,122.03,121.94,0.14216157]
[1741887421432,16.7754,122.02,121.94,0.14216157]
[1741887421735,217.123,122.03,121.99,37.83501465]
[1741887422017,225.318,122.03,121.99,37.83501465]
[1741887422221,37.83501465,122.02,121.96,81.0]
[1741887422424,37.83501465,122.02,121.97,37.83501465]
[1741887422921,46.03101465,122.01,121.93,218.0]
[1741887423231,37.83501465,121.99,121.94,37.83501465]
[1741887423520,46.03101465,122.01,121.96,37.83501465]
[1741887423722,37.83501465,122.0,121.95,37.83501465]